[Event "European Womens-ch 2025"]
[Site "Rhodes"]
[Date "2025.04.09"]
[Round "9.15"]
[White "Gevorgyan, Maria"]
[Black "Savina, Anastasia"]
[Result "0-1"]
[Annotator "ChessBase"]
[ECO "D00"]
[WhiteElo "2234"]
[BlackElo "2331"]
[PlyCount "142"]
[EventDate "2025.03.29"]
[EventType "swiss"]
[EventCountry "GRE"]
[SourceTitle "playchess.com"]
[Source "ChessBase"]
[SourceQuality "1"]
[TimeControl "40/5400+30:1800+30"]

1. d4 {[%emt 0:00:03]} d5 {[%emt 0:04:08]} 2. Bf4 {[%emt 0:00:14]} c5 {[%emt 0:00:38]} 3. c3 {[%emt 0:00:13]} Nc6 {[%emt 0:00:23]} 4. e3 {[%emt 0:00:36]} Qb6 {[%emt 0:00:50]} 5. Qb3 {[%emt 0:00:53]} c4 {[%emt 0:01:07]} 6. Qc2 {[%emt 0:09:31]} e5 {[%emt 0:08:00]} 7. dxe5 {[%emt 0:04:57]} Bf5 {[%emt 0:00:26]} 8. Qc1 {[%emt 0:24:30]} g5 {[%emt 0:03:58]} 9. Bg3 {[%emt 0:04:13]} Bg7 {[%emt 0:00:49]} 10. Nf3 {[%emt 0:00:54]} h5 {[%emt 0:02:06]} 11. Nxg5 {[%emt 0:09:17]} h4 {[%emt 0:31:56]} 12. Bf4 {[%emt 0:00:27]} Nxe5 {[%emt 0:00:50]} 13. e4 {[%emt 0:07:15]} dxe4 {[%emt 0:16:47]} 14. Bxe5 {[%emt 0:02:30]} Bxe5 {[%emt 0:00:06]} 15. Na3 {[%emt 0:07:59]} Qc7 {[%emt 0:12:23]} 16. Qc2 {[%emt 0:03:04]} O-O-O {[%emt 0:02:43]} 17. Bxc4 {[%emt 0:01:51]} Nh6 {[%emt 0:01:47]} 18. Nxe4 {[%emt 0:09:05]} Bxe4 {[%emt 0:07:52]} 19. Qxe4 {[%emt 0:00:01]} Bxc3+ {[%emt 0:02:36]} 20. Kf1 {[%emt 0:00:01]} Rd4 {[%emt 0:00:33]} 21. Qe2 {[%emt 0:02:41]} Rd2 {[%emt 0:00:29]} 22. Qe3 {[%emt 0:03:33]} Bxb2 {[%emt 0:00:31]} 23. Rb1 {[%emt 0:02:29]} Rhd8 {[%emt 0:00:25]} 24. Be2 {[%emt 0:03:58]} Bxa3 {[%emt 0:00:21]} 25. Qxa3 {[%emt 0:00:06]} Rxe2 {[%emt 0:00:39]} 26. Qxa7 {[%emt 0:00:29]} Rc2 {[%emt 0:00:34]} 27. Qa8+ {[%emt 0:00:18]} Qb8 {[%emt 0:00:21]} 28. Qa4 {[%emt 0:00:51]} Rc6 {[%emt 0:00:23]} 29. Qxh4 {[%emt 0:00:18]} Qd6 {[%emt 0:00:42]} 30. g3 {[%emt 0:00:24]} Nf5 {[%emt 0:00:34]} 31. Qe4 {[%emt 0:01:09]} Qd3+ {[%emt 0:00:30]} 32. Qxd3 {[%emt 0:00:02]} Rxd3 {[%emt 0:00:03]} 33. Kg2 {[%emt 0:00:06]} Rd2 {[%emt 0:00:25]} 34. g4 {[%emt 0:00:54]} Ne3+ {[%emt 0:01:00]} 35. Kg3 {[%emt 0:00:19]} Nd5 {[%emt 0:00:33]} 36. Rhe1 {[%emt 0:01:00]} Rc3+ {[%emt 0:00:18]} 37. f3 {[%emt 0:00:24]} Rcc2 {[%emt 0:00:30]} 38. Rg1 {[%emt 0:00:21]} Rxh2 {[%emt 0:00:27]} 39. Rb5 {[%emt 0:00:43]} Rhd2 {[%emt 0:00:22]} 40. a4 {[%emt 0:00:00]} Rc3 {[%emt 0:00:00]} 41. Rgb1 {[%emt 0:02:56]} Rc7 {[%emt 0:09:12]} 42. Rh1 {[%emt 0:00:32]} Rcc2 {[%emt 0:01:56]} 43. Kh4 {[%emt 0:03:00]} Rc6 {[%emt 0:12:41]} 44. Kg3 {[%emt 0:02:50]} Nc3 {[%emt 0:02:10]} 45. Rh8+ {[%emt 0:00:36]} Kc7 {[%emt 0:00:04]} 46. Rf5 {[%emt 0:00:09]} f6 {[%emt 0:01:54]} 47. Rf8 {[%emt 0:00:19]} Nd5 {[%emt 0:03:06]} 48. Rf7+ {[%emt 0:07:45]} Kd6 {[%emt 0:00:24]} 49. Rh5 {[%emt 0:00:04]} Rc1 {[%emt 0:02:25]} 50. Rxd5+ {[%emt 0:00:55]} Rxd5 {[%emt 0:00:15]} 51. Rxf6+ {[%emt 0:00:11]} Ke7 {[%emt 0:01:04]} 52. Rb6 {[%emt 0:00:27]} Rc7 {[%emt 0:00:10]} 53. Rb4 {[%emt 0:00:07]} Rdc5 {[%emt 0:00:29]} 54. Rb6 {[%emt 0:01:05]} Kf7 {[%emt 0:00:19]} 55. f4 {[%emt 0:01:08]} Rc3+ {[%emt 0:01:22]} 56. Kh4 {[%emt 0:00:01]} R3c4 {[%emt 0:00:04]} 57. f5 {[%emt 0:00:08]} Rxa4 {[%emt 0:00:14]} 58. Kh5 {[%emt 0:00:17]} Ra6 {[%emt 0:00:51]} 59. Rb5 {[%emt 0:00:12]} Ra8 {[%emt 0:00:40]} 60. g5 {[%emt 0:01:12]} Rh8+ {[%emt 0:00:04]} 61. Kg4 {[%emt 0:00:01]} Rh1 {[%emt 0:00:24]} 62. Rb4 {[%emt 0:00:25]} Kg7 {[%emt 0:00:28]} 63. Rd4 {[%emt 0:00:20]} b5 {[%emt 0:00:17]} 64. Rd5 {[%emt 0:01:36]} Rg1+ {[%emt 0:01:49]} 65. Kh5 {[%emt 0:00:06]} Rh1+ {[%emt 0:00:04]} 66. Kg4 {[%emt 0:00:03]} Rb7 {[%emt 0:00:11]} 67. g6 {[%emt 0:01:02]} b4 {[%emt 0:00:55]} 68. Kg5 {[%emt 0:00:05]} Rg1+ {[%emt 0:00:03]} 69. Kh5 {[%emt 0:00:03]} b3 {[%emt 0:00:36]} 70. Rd6 {[%emt 0:00:04]} Rf1 {[%emt 0:00:30]} 71. Kg5 {[%emt 0:01:16]} b2 {[%emt 0:00:10]} 0-1

[Event "European Womens-ch 2025"]
[Site "Rhodes"]
[Date "2025.04.09"]
[Round "9.16"]
[White "Mgeladze, Kesaria"]
[Black "Toncheva, Nadya"]
[Result "0-1"]
[Annotator "ChessBase"]
[ECO "B48"]
[WhiteElo "2200"]
[BlackElo "2329"]
[PlyCount "62"]
[EventDate "2025.03.29"]
[EventType "swiss"]
[EventCountry "GRE"]
[SourceTitle "playchess.com"]
[Source "ChessBase"]
[SourceQuality "1"]
[TimeControl "40/5400+30:1800+30"]

1. e4 {[%emt 0:00:02]} c5 {[%emt 0:00:09]} 2. Nf3 {[%emt 0:00:05]} Nc6 {[%emt 0:00:06]} 3. d4 {[%emt 0:00:05]} cxd4 {[%emt 0:00:07]} 4. Nxd4 {[%emt 0:00:04]} e6 {[%emt 0:00:09]} 5. Nc3 {[%emt 0:00:08]} Qc7 {[%emt 0:00:04]} 6. Be3 {[%emt 0:00:09]} a6 {[%emt 0:00:06]} 7. Qf3 {[%emt 0:00:07]} Nxd4 {[%emt 0:00:05]} 8. Bxd4 {[%emt 0:00:09]} Ne7 {[%emt 0:00:06]} 9. O-O-O {[%emt 0:08:15]} Nc6 {[%emt 0:00:06]} 10. Be3 {[%emt 0:03:31]} b5 {[%emt 0:00:07]} 11. Nd5 {[%emt 0:36:06]} exd5 {[%emt 0:03:36]} 12. exd5 {[%emt 0:00:50]} Ne5 {[%emt 0:03:10]} 13. Bf4 {[%emt 0:09:22]} g5 {[%emt 0:20:02]} 14. Bg3 {[%emt 0:17:50]} Bg7 {[%emt 0:10:13]} 15. Qe3 {[%emt 0:05:51]} d6 {[%emt 0:06:01]} 16. Qxg5 {[%emt 0:00:09]} f6 {[%emt 0:00:40]} 17. Qe3 {[%emt 0:01:37]} Bf5 {[%emt 0:01:06]} 18. Bd3 {[%emt 0:01:38]} Bxd3 {[%emt 0:00:07]} 19. Rxd3 {[%emt 0:00:04]} O-O {[%emt 0:00:46]} 20. Bxe5 {[%emt 0:02:43]} fxe5 {[%emt 0:00:08]} 21. Qd2 {[%emt 0:04:05]} Rac8 {[%emt 0:02:14]} 22. Kb1 {[%emt 0:00:53]} Qc5 {[%emt 0:02:55]} 23. Rf1 {[%emt 0:00:30]} Rf4 {[%emt 0:07:56]} 24. Rg3 {[%emt 0:05:47]} Rcf8 {[%emt 0:01:27]} 25. Rc1 {[%emt 0:01:22]} Qxf2 {[%emt 0:00:55]} 26. Qa5 {[%emt 0:00:15]} Qa7 {[%emt 0:00:40]} 27. Qa3 {[%emt 0:01:13]} Rf1 {[%emt 0:01:35]} 28. Qxd6 {[%emt 0:00:59]} Rxc1+ {[%emt 0:00:06]} 29. Kxc1 {[%emt 0:00:03]} Rf1+ {[%emt 0:00:05]} 30. Kd2 {[%emt 0:00:04]} Qf2+ {[%emt 0:00:18]} 31. Kd3 {[%emt 0:00:06]} Qd4+ {[%emt 0:00:10]} 0-1

[Event "European Womens-ch 2025"]
[Site "Rhodes"]
[Date "2025.04.09"]
[Round "9.17"]
[White "Wagner, Dinara"]
[Black "Khurtsilava, Inga"]
[Result "0-1"]
[Annotator "ChessBase"]
[ECO "E01"]
[WhiteElo "2440"]
[BlackElo "2214"]
[PlyCount "184"]
[EventDate "2025.03.29"]
[EventType "swiss"]
[EventCountry "GRE"]
[SourceTitle "playchess.com"]
[Source "ChessBase"]
[SourceQuality "1"]
[TimeControl "40/5400+30:1800+30"]

1. d4 {[%emt 0:00:04]} Nf6 {[%emt 0:00:08]} 2. c4 {[%emt 0:00:04]} e6 {[%emt 0:00:08]} 3. Nf3 {[%emt 0:00:04]} d5 {[%emt 0:00:07]} 4. g3 {[%emt 0:00:04]} h6 {[%emt 0:00:08]} 5. Bg2 {[%emt 0:00:20]} Bd6 {[%emt 0:00:06]} 6. O-O {[%emt 0:00:39]} O-O {[%emt 0:00:06]} 7. b3 {[%emt 0:00:02]} b6 {[%emt 0:01:01]} 8. Bb2 {[%emt 0:01:09]} Nbd7 {[%emt 0:00:18]} 9. Nbd2 {[%emt 0:02:07]} Bb7 {[%emt 0:00:33]} 10. Ne5 {[%emt 0:02:17]} c5 {[%emt 0:06:41]} 11. cxd5 {[%emt 0:01:15]} exd5 {[%emt 0:06:48]} 12. Ndc4 {[%emt 0:00:48]} Be7 {[%emt 0:09:24]} 13. Ne3 {[%emt 0:09:45]} Re8 {[%emt 0:04:58]} 14. Rc1 {[%emt 0:07:29]} cxd4 {[%emt 0:13:28]} 15. Bxd4 {[%emt 0:00:38]} Nc5 {[%emt 0:00:12]} 16. Bb2 {[%emt 0:15:24]} a5 {[%emt 0:01:48]} 17. Rc2 {[%emt 0:02:22]} Bd6 {[%emt 0:08:17]} 18. Nd3 {[%emt 0:17:51]} Nce4 {[%emt 0:02:36]} 19. Nf4 {[%emt 0:11:00]} Bxf4 {[%emt 0:09:26]} 20. gxf4 {[%emt 0:00:03]} Nh5 {[%emt 0:00:13]} 21. Qd4 {[%emt 0:03:11]} Qd6 {[%emt 0:05:13]} 22. f5 {[%emt 0:06:03]} Rad8 {[%emt 0:05:35]} 23. Bf3 {[%emt 0:03:28]} Nhf6 {[%emt 0:09:03]} 24. Ng4 {[%emt 0:00:06]} Ng5 {[%emt 0:08:02]} 25. Nxf6+ {[%emt 0:01:18]} Qxf6 {[%emt 0:00:08]} 26. Bg2 {[%emt 0:00:19]} Qxd4 {[%emt 0:01:02]} 27. Bxd4 {[%emt 0:00:03]} Rd6 {[%emt 0:00:07]} 28. Rfc1 {[%emt 0:00:40]} Ba6 {[%emt 0:01:31]} 29. e3 {[%emt 0:00:56]} Bd3 {[%emt 0:02:20]} 30. Rc6 {[%emt 0:01:43]} Rxc6 {[%emt 0:01:37]} 31. Rxc6 {[%emt 0:00:04]} Bxf5 {[%emt 0:00:03]} 32. h4 {[%emt 0:04:06]} Ne4 {[%emt 0:01:03]} 33. Bxb6 {[%emt 0:00:39]} Ra8 {[%emt 0:00:15]} 34. f3 {[%emt 0:03:31]} Nf6 {[%emt 0:00:59]} 35. Bd4 {[%emt 0:00:04]} Nd7 {[%emt 0:01:35]} 36. a4 {[%emt 0:02:30]} Be6 {[%emt 0:01:23]} 37. Bf1 {[%emt 0:00:24]} Kf8 {[%emt 0:01:09]} 38. Kf2 {[%emt 0:00:13]} g6 {[%emt 0:00:32]} 39. Ke1 {[%emt 0:03:59]} Ke7 {[%emt 0:00:13]} 40. Kd2 {[%emt 0:00:00]} Nb8 {[%emt 0:00:00]} 41. Rb6 {[%emt 0:07:55]} Nd7 {[%emt 0:04:12]} 42. Rb5 {[%emt 0:01:21]} Kd6 {[%emt 0:03:29]} 43. f4 {[%emt 0:06:17]} Kc6 {[%emt 0:01:43]} 44. Bg2 {[%emt 0:00:29]} Rb8 {[%emt 0:04:48]} 45. Rxa5 {[%emt 0:00:39]} Rxb3 {[%emt 0:00:07]} 46. Bf1 {[%emt 0:00:39]} Rb8 {[%emt 0:13:27]} 47. Bb5+ {[%emt 0:02:28]} Kc7 {[%emt 0:01:02]} 48. Ra6 {[%emt 0:00:04]} Rb7 {[%emt 0:02:05]} 49. Rc6+ {[%emt 0:00:10]} Kd8 {[%emt 0:00:26]} 50. Bd3 {[%emt 0:01:53]} Rc7 {[%emt 0:02:17]} 51. Ra6 {[%emt 0:00:15]} Nc5 {[%emt 0:01:26]} 52. Bxc5 {[%emt 0:10:27]} Rxc5 {[%emt 0:00:02]} 53. a5 {[%emt 0:00:04]} Kc7 {[%emt 0:00:59]} 54. Bxg6 {[%emt 0:00:46]} Kb7 {[%emt 0:01:16]} 55. Bd3 {[%emt 0:00:18]} d4 {[%emt 0:01:52]} 56. exd4 {[%emt 0:02:18]} Rh5 {[%emt 0:00:02]} 57. Rb6+ {[%emt 0:01:26]} Kc7 {[%emt 0:00:13]} 58. Rb5 {[%emt 0:02:09]} Rxh4 {[%emt 0:00:06]} 59. a6 {[%emt 0:00:12]} Rh2+ {[%emt 0:00:33]} 60. Kc3 {[%emt 0:01:03]} Ra2 {[%emt 0:00:03]} 61. Rh5 {[%emt 0:00:46]} Ra3+ {[%emt 0:00:34]} 62. Kd2 {[%emt 0:00:02]} Ra2+ {[%emt 0:01:04]} 63. Ke3 {[%emt 0:00:04]} Ra3 {[%emt 0:00:05]} 64. d5 {[%emt 0:00:16]} Bg4 {[%emt 0:01:23]} 65. d6+ {[%emt 0:01:01]} Kd7 {[%emt 0:00:58]} 66. Rb5 {[%emt 0:02:10]} Kxd6 {[%emt 0:00:30]} 67. f5 {[%emt 0:00:55]} Bh3 {[%emt 0:00:00]} 68. Rb4 {[%emt 0:01:07]} Bxf5 {[%emt 0:00:16]} 69. Rd4+ {[%emt 0:00:05]} Ke5 {[%emt 0:00:18]} 70. Rd8 {[%emt 0:00:57]} Bxd3 {[%emt 0:00:08]} 71. Rxd3 {[%emt 0:00:03]} Rxa6 {[%emt 0:00:04]} 72. Kf3 {[%emt 0:00:03]} Rg6 {[%emt 0:00:31]} 73. Ra3 {[%emt 0:00:03]} f5 {[%emt 0:00:18]} 74. Ra8 {[%emt 0:00:24]} Kf6 {[%emt 0:00:33]} 75. Rf8+ {[%emt 0:00:21]} Kg5 {[%emt 0:00:22]} 76. Kg3 {[%emt 0:00:06]} h5 {[%emt 0:00:13]} 77. Ra8 {[%emt 0:01:40]} h4+ {[%emt 0:00:34]} 78. Kf3 {[%emt 0:00:42]} Rg7 {[%emt 0:00:55]} 79. Rh8 {[%emt 0:00:37]} Rg6 {[%emt 0:00:20]} 80. Ra8 {[%emt 0:00:11]} h3 {[%emt 0:00:53]} 81. Kg3 {[%emt 0:01:09]} Rh6 {[%emt 0:00:16]} 82. Kh2 {[%emt 0:00:38]} f4 {[%emt 0:00:28]} 83. Rg8+ {[%emt 0:00:30]} Kf5 {[%emt 0:00:18]} 84. Ra8 {[%emt 0:00:28]} Kg4 {[%emt 0:00:13]} 85. Ra1 {[%emt 0:00:34]} Re6 {[%emt 0:00:38]} 86. Ra3 {[%emt 0:00:32]} Re2+ {[%emt 0:00:30]} 87. Kg1 {[%emt 0:00:02]} Re3 {[%emt 0:00:49]} 88. Ra2 {[%emt 0:00:05]} f3 {[%emt 0:00:49]} 89. Ra8 {[%emt 0:00:50]} Re1+ {[%emt 0:00:19]} 90. Kh2 {[%emt 0:00:30]} f2 {[%emt 0:00:39]} 91. Rg8+ {[%emt 0:00:53]} Kf4 {[%emt 0:00:21]} 92. Rg4+ {[%emt 0:00:38]} Ke3 {[%emt 0:00:13]} 0-1

[Event "European Womens-ch 2025"]
[Site "Rhodes"]
[Date "2025.04.09"]
[Round "9.18"]
[White "Atalik, Ekaterina"]
[Black "Mamedjarova, Turkan"]
[Result "0-1"]
[Annotator "ChessBase"]
[ECO "E49"]
[WhiteElo "2375"]
[BlackElo "2206"]
[PlyCount "76"]
[EventDate "2025.03.29"]
[EventType "swiss"]
[EventCountry "GRE"]
[SourceTitle "playchess.com"]
[Source "ChessBase"]
[SourceQuality "1"]
[TimeControl "40/5400+30:1800+30"]

1. d4 {[%emt 0:00:03]} Nf6 {[%emt 0:00:08]} 2. c4 {[%emt 0:00:15]} e6 {[%emt 0:00:05]} 3. Nc3 {[%emt 0:00:27]} Bb4 {[%emt 0:00:22]} 4. e3 {[%emt 0:00:33]} d5 {[%emt 0:00:48]} 5. a3 {[%emt 0:01:14]} Bxc3+ {[%emt 0:00:27]} 6. bxc3 {[%emt 0:00:06]} O-O {[%emt 0:02:54]} 7. cxd5 {[%emt 0:00:04]} exd5 {[%emt 0:00:30]} 8. Bd3 {[%emt 0:00:13]} c5 {[%emt 0:03:00]} 9. Ne2 {[%emt 0:00:22]} c4 {[%emt 0:00:40]} 10. Bc2 {[%emt 0:00:31]} Nc6 {[%emt 0:00:58]} 11. O-O {[%emt 0:00:33]} b5 {[%emt 0:05:25]} 12. f3 {[%emt 0:02:30]} a5 {[%emt 0:08:21]} 13. e4 {[%emt 0:01:07]} h6 {[%emt 0:06:39]} 14. Qe1 {[%emt 0:09:43]} Re8 {[%emt 0:11:59]} 15. e5 {[%emt 0:02:28]} Nh7 {[%emt 0:02:56]} 16. Qg3 {[%emt 0:03:17]} Kh8 {[%emt 0:00:43]} 17. Nf4 {[%emt 0:01:29]} Ne7 {[%emt 0:05:58]} 18. Nh5 {[%emt 0:02:21]} Rg8 {[%emt 0:01:24]} 19. Qf4 {[%emt 0:05:13]} Qf8 {[%emt 0:04:40]} 20. g4 {[%emt 0:03:31]} Ra6 {[%emt 0:02:20]} 21. Rb1 {[%emt 0:02:27]} Bd7 {[%emt 0:04:15]} 22. a4 {[%emt 0:07:29]} b4 {[%emt 0:02:07]} 23. cxb4 {[%emt 0:00:46]} axb4 {[%emt 0:00:02]} 24. Rxb4 {[%emt 0:00:19]} Ng5 {[%emt 0:07:11]} 25. Qd2 {[%emt 0:07:03]} Nxf3+ {[%emt 0:03:57]} 26. Rxf3 {[%emt 0:00:44]} Bxg4 {[%emt 0:00:02]} 27. Nf4 {[%emt 0:08:35]} Bxf3 {[%emt 0:00:22]} 28. Rb7 {[%emt 0:00:37]} Ng6 {[%emt 0:08:43]} 29. a5 {[%emt 0:17:51]} Be4 {[%emt 0:06:21]} 30. Bd1 {[%emt 0:05:04]} Nxf4 {[%emt 0:02:34]} 31. Qxf4 {[%emt 0:00:04]} Rg6+ {[%emt 0:00:06]} 32. Kf2 {[%emt 0:01:22]} Qc8 {[%emt 0:00:11]} 33. Rxf7 {[%emt 0:02:14]} Qh3 {[%emt 0:00:17]} 34. Be3 {[%emt 0:01:16]} Rg2+ {[%emt 0:04:20]} 35. Ke1 {[%emt 0:00:05]} Rxh2 {[%emt 0:00:18]} 36. Be2 {[%emt 0:03:54]} Rh1+ {[%emt 0:00:55]} 37. Kd2 {[%emt 0:01:24]} c3+ {[%emt 0:00:12]} 38. Kxc3 {[%emt 0:00:20]} Qc8+ {[%emt 0:00:12]} 0-1

[Event "European Womens-ch 2025"]
[Site "Rhodes"]
[Date "2025.04.09"]
[Round "9.19"]
[White "Socko, Monika"]
[Black "Gaboyan, Susanna"]
[Result "1-0"]
[Annotator "ChessBase"]
[ECO "B01"]
[WhiteElo "2369"]
[BlackElo "2200"]
[PlyCount "39"]
[EventDate "2025.03.29"]
[EventType "swiss"]
[EventCountry "GRE"]
[SourceTitle "playchess.com"]
[Source "ChessBase"]
[SourceQuality "1"]
[TimeControl "40/5400+30:1800+30"]

1. e4 {[%emt 0:00:04]} d5 {[%emt 0:00:52]} 2. exd5 {[%emt 0:00:06]} Qxd5 {[%emt 0:00:05]} 3. Nc3 {[%emt 0:00:07]} Qe5+ {[%emt 0:00:07]} 4. Be2 {[%emt 0:03:37]} Bg4 {[%emt 0:01:50]} 5. d4 {[%emt 0:01:31]} Bxe2 {[%emt 0:00:11]} 6. Ncxe2 {[%emt 0:02:10]} Qe4 {[%emt 0:06:43]} 7. Nf3 {[%emt 0:00:10]} Nc6 {[%emt 0:00:49]} 8. O-O {[%emt 0:00:46]} O-O-O {[%emt 0:00:59]} 9. c4 {[%emt 0:06:29]} e6 {[%emt 0:10:39]} 10. a3 {[%emt 0:04:05]} Nh6 {[%emt 0:08:31]} 11. b4 {[%emt 0:07:45]} Nf5 {[%emt 0:07:21]} 12. Ng5 {[%emt 0:08:46]} Qh4 {[%emt 0:13:11]} 13. Nxf7 {[%emt 0:06:25]} Ncxd4 {[%emt 0:08:26]} 14. Nxd8 {[%emt 0:01:36]} Bd6 {[%emt 0:02:41]} 15. f4 {[%emt 0:02:10]} Rxd8 {[%emt 0:10:00]} 16. Nxd4 {[%emt 0:00:27]} Qf6 {[%emt 0:00:08]} 17. Bb2 {[%emt 0:02:25]} Ne3 {[%emt 0:04:12]} 18. Qe2 {[%emt 0:01:15]} Nxf1 {[%emt 0:01:39]} 19. Rxf1 {[%emt 0:00:17]} e5 {[%emt 0:00:22]} 20. Nb5 {[%emt 0:02:04]} 1-0

[Event "European Womens-ch 2025"]
[Site "Rhodes"]
[Date "2025.04.09"]
[Round "9.20"]
[White "Sandu, Mihaela"]
[Black "Brunello, Marina"]
[Result "0-1"]
[Annotator "ChessBase"]
[ECO "B12"]
[WhiteElo "2230"]
[BlackElo "2330"]
[PlyCount "66"]
[EventDate "2025.03.29"]
[EventType "swiss"]
[EventCountry "GRE"]
[SourceTitle "playchess.com"]
[Source "ChessBase"]
[SourceQuality "1"]
[TimeControl "40/5400+30:1800+30"]

1. e4 {[%emt 0:01:09]} c6 {[%emt 0:00:34]} 2. d4 {[%emt 0:00:51]} d5 {[%emt 0:00:05]} 3. e5 {[%emt 0:00:06]} Bf5 {[%emt 0:00:02]} 4. Nf3 {[%emt 0:00:29]} e6 {[%emt 0:00:07]} 5. Be2 {[%emt 0:00:06]} c5 {[%emt 0:00:08]} 6. Be3 {[%emt 0:01:33]} cxd4 {[%emt 0:00:04]} 7. Nxd4 {[%emt 0:00:52]} Ne7 {[%emt 0:00:06]} 8. Bb5+ {[%emt 0:00:53]} Nd7 {[%emt 0:00:12]} 9. c4 {[%emt 0:05:13]} a6 {[%emt 0:03:11]} 10. Bxd7+ {[%emt 0:26:58]} Qxd7 {[%emt 0:00:09]} 11. Nc3 {[%emt 0:11:56]} dxc4 {[%emt 0:08:37]} 12. Nxf5 {[%emt 0:04:40]} Nxf5 {[%emt 0:01:40]} 13. O-O {[%emt 0:11:48]} Qc6 {[%emt 0:10:16]} 14. Qg4 {[%emt 0:07:13]} Be7 {[%emt 0:01:16]} 15. Ne4 {[%emt 0:01:42]} O-O {[%emt 0:10:20]} 16. Rac1 {[%emt 0:07:01]} b5 {[%emt 0:03:11]} 17. b3 {[%emt 0:02:28]} Rac8 {[%emt 0:00:55]} 18. Bd2 {[%emt 0:02:21]} Rfd8 {[%emt 0:04:15]} 19. bxc4 {[%emt 0:01:28]} bxc4 {[%emt 0:00:12]} 20. Rfe1 {[%emt 0:01:27]} Rd3 {[%emt 0:06:27]} 21. h4 {[%emt 0:01:04]} Bxh4 {[%emt 0:05:05]} 22. Bg5 {[%emt 0:03:15]} Bxg5 {[%emt 0:00:42]} 23. Qxg5 {[%emt 0:02:15]} h6 {[%emt 0:00:12]} 24. Qg4 {[%emt 0:01:59]} c3 {[%emt 0:04:43]} 25. Rc2 {[%emt 0:00:06]} Qb5 {[%emt 0:02:09]} 26. Nf6+ {[%emt 0:00:53]} Kh8 {[%emt 0:00:22]} 27. Nh5 {[%emt 0:00:40]} Rd2 {[%emt 0:01:25]} 28. Qe4 {[%emt 0:01:33]} Rxc2 {[%emt 0:00:16]} 29. Qxc2 {[%emt 0:03:01]} Qb2 {[%emt 0:00:22]} 30. Qc1 {[%emt 0:00:00]} Qxa2 {[%emt 0:01:15]} 31. g4 {[%emt 0:00:00]} Nd4 {[%emt 0:00:41]} 32. Qf4 {[%emt 0:00:00]} Ne2+ {[%emt 0:01:43]} 33. Rxe2 {[%emt 0:00:00]} Qxe2 {[%emt 0:00:04]} 0-1

[Event "European Womens-ch 2025"]
[Site "Rhodes"]
[Date "2025.04.09"]
[Round "9.21"]
[White "Jarocka, Liwia"]
[Black "Zawadzka, Jolanta"]
[Result "0-1"]
[Annotator "ChessBase"]
[ECO "B46"]
[WhiteElo "2231"]
[BlackElo "2326"]
[PlyCount "102"]
[EventDate "2025.03.29"]
[EventType "swiss"]
[EventCountry "GRE"]
[SourceTitle "playchess.com"]
[Source "ChessBase"]
[SourceQuality "1"]
[TimeControl "40/5400+30:1800+30"]

1. e4 {[%emt 0:00:04]} c5 {[%emt 0:00:05]} 2. Nf3 {[%emt 0:00:06]} e6 {[%emt 0:00:04]} 3. d4 {[%emt 0:00:10]} cxd4 {[%emt 0:00:05]} 4. Nxd4 {[%emt 0:00:03]} Nc6 {[%emt 0:00:06]} 5. Nc3 {[%emt 0:00:17]} a6 {[%emt 0:00:08]} 6. Nxc6 {[%emt 0:03:03]} bxc6 {[%emt 0:00:05]} 7. Bd3 {[%emt 0:01:17]} d5 {[%emt 0:00:10]} 8. O-O {[%emt 0:01:10]} Nf6 {[%emt 0:00:14]} 9. Qf3 {[%emt 0:00:44]} Be7 {[%emt 0:08:04]} 10. Qg3 {[%emt 0:07:55]} O-O {[%emt 0:08:48]} 11. e5 {[%emt 0:01:23]} Ne8 {[%emt 0:06:51]} 12. Ne2 {[%emt 0:07:10]} g6 {[%emt 0:05:02]} 13. f4 {[%emt 0:04:51]} Ng7 {[%emt 0:02:42]} 14. b3 {[%emt 0:08:46]} a5 {[%emt 0:09:52]} 15. Kh1 {[%emt 0:06:44]} c5 {[%emt 0:01:18]} 16. c4 {[%emt 0:03:26]} a4 {[%emt 0:05:53]} 17. Rb1 {[%emt 0:12:01]} axb3 {[%emt 0:12:06]} 18. axb3 {[%emt 0:00:39]} Ba6 {[%emt 0:03:38]} 19. cxd5 {[%emt 0:15:24]} Qxd5 {[%emt 0:00:17]} 20. Bxa6 {[%emt 0:00:12]} Rxa6 {[%emt 0:00:06]} 21. Qc3 {[%emt 0:02:43]} Rd8 {[%emt 0:02:58]} 22. Be3 {[%emt 0:02:43]} Nf5 {[%emt 0:00:22]} 23. Bf2 {[%emt 0:00:39]} Ra2 {[%emt 0:01:47]} 24. Qe1 {[%emt 0:02:25]} Rc2 {[%emt 0:02:58]} 25. Ng3 {[%emt 0:02:14]} Nxg3+ {[%emt 0:09:30]} 26. hxg3 {[%emt 0:00:01]} Ra8 {[%emt 0:00:13]} 27. Qe3 {[%emt 0:04:43]} Rd2 {[%emt 0:01:37]} 28. Ra1 {[%emt 0:06:37]} Rxa1 {[%emt 0:03:45]} 29. Rxa1 {[%emt 0:00:01]} Rd3 {[%emt 0:00:12]} 30. Qe2 {[%emt 0:00:44]} Qxb3 {[%emt 0:01:15]} 31. g4 {[%emt 0:03:03]} Qd5 {[%emt 0:01:09]} 32. Be1 {[%emt 0:02:36]} Bh4 {[%emt 0:02:50]} 33. Qxd3 {[%emt 0:01:21]} Qxd3 {[%emt 0:00:06]} 34. Bxh4 {[%emt 0:01:21]} Qd5 {[%emt 0:01:24]} 35. Rb1 {[%emt 0:00:13]} f5 {[%emt 0:00:51]} 36. Rb8+ {[%emt 0:00:26]} Kf7 {[%emt 0:00:12]} 37. Rd8 {[%emt 0:00:43]} Qc6 {[%emt 0:01:17]} 38. Rh8 {[%emt 0:00:42]} g5 {[%emt 0:00:54]} 39. Bxg5 {[%emt 0:00:16]} fxg4 {[%emt 0:00:14]} 40. Rxh7+ {[%emt 0:00:00]} Kg6 {[%emt 0:00:00]} 41. Rh6+ {[%emt 0:00:45]} Kf5 {[%emt 0:03:57]} 42. Rf6+ {[%emt 0:00:27]} Ke4 {[%emt 0:00:05]} 43. f5 {[%emt 0:00:21]} Qa4 {[%emt 0:01:04]} 44. fxe6 {[%emt 0:01:34]} Qa1+ {[%emt 0:01:25]} 45. Kh2 {[%emt 0:00:03]} Qxe5+ {[%emt 0:01:24]} 46. Rf4+ {[%emt 0:01:27]} Kd3 {[%emt 0:00:12]} 47. e7 {[%emt 0:00:23]} Qxg5 {[%emt 0:00:33]} 48. e8=Q {[%emt 0:00:40]} Qxf4+ {[%emt 0:00:12]} 49. g3 {[%emt 0:00:17]} Qf2+ {[%emt 0:00:08]} 50. Kh1 {[%emt 0:00:05]} Qf1+ {[%emt 0:00:04]} 51. Kh2 {[%emt 0:00:03]} Qe2+ {[%emt 0:00:06]} 0-1

[Event "European Womens-ch 2025"]
[Site "Rhodes"]
[Date "2025.04.09"]
[Round "9.22"]
[White "Antolak, Julia"]
[Black "Karacsonyi, Kata"]
[Result "1/2-1/2"]
[Annotator "ChessBase"]
[ECO "B56"]
[WhiteElo "2314"]
[BlackElo "2198"]
[PlyCount "47"]
[EventDate "2025.03.29"]
[EventType "swiss"]
[EventCountry "GRE"]
[SourceTitle "playchess.com"]
[Source "ChessBase"]
[SourceQuality "1"]
[TimeControl "40/5400+30:1800+30"]

1. e4 {[%emt 0:00:03]} c5 {[%emt 0:01:48]} 2. Nf3 {[%emt 0:00:04]} d6 {[%emt 0:00:09]} 3. d4 {[%emt 0:00:04]} Nf6 {[%emt 0:00:17]} 4. Nc3 {[%emt 0:00:06]} cxd4 {[%emt 0:00:07]} 5. Nxd4 {[%emt 0:00:05]} e5 {[%emt 0:00:11]} 6. Nde2 {[%emt 0:01:10]} Be6 {[%emt 0:00:11]} 7. g3 {[%emt 0:00:15]} Be7 {[%emt 0:00:07]} 8. Bg2 {[%emt 0:00:26]} O-O {[%emt 0:00:10]} 9. O-O {[%emt 0:00:08]} Na6 {[%emt 0:00:38]} 10. b3 {[%emt 0:06:55]} Nc5 {[%emt 0:13:41]} 11. h3 {[%emt 0:03:23]} Qd7 {[%emt 0:04:29]} 12. Kh2 {[%emt 0:01:01]} b5 {[%emt 0:07:03]} 13. a3 {[%emt 0:03:38]} a5 {[%emt 0:11:07]} 14. Be3 {[%emt 0:03:46]} Rfc8 {[%emt 0:22:43]} 15. f4 {[%emt 0:10:34]} Qb7 {[%emt 0:06:43]} 16. Nd5 {[%emt 0:08:43]} Bxd5 {[%emt 0:09:12]} 17. exd5 {[%emt 0:00:10]} e4 {[%emt 0:00:22]} 18. Qd2 {[%emt 0:10:58]} Qxd5 {[%emt 0:01:54]} 19. Qxd5 {[%emt 0:02:48]} Nxd5 {[%emt 0:00:05]} 20. Bxc5 {[%emt 0:00:08]} Rxc5 {[%emt 0:00:10]} 21. Bxe4 {[%emt 0:00:09]} Re8 {[%emt 0:00:09]} 22. Bxd5 {[%emt 0:04:08]} Rxd5 {[%emt 0:02:17]} 23. Rad1 {[%emt 0:01:31]} Rc5 {[%emt 0:01:11]} 24. Rd2 {[%emt 0:03:42]} 1/2-1/2